[Event "*** Titled Tuesday Blitz"]
[Site "Chess.com"]
[Date "2020.04.07"]
[Round "2"]
[White "swimmerchess"]
[Black "nabukatnezarr"]
[Result "1-0"]
[WhiteElo "2816"]
[BlackElo "2540"]
[TimeControl "180+1"]
[EndTime "13:15:59 PDT"]
[Termination "swimmerchess won by resignation"]

1. e4 {[%clk 0:03:00.9]} 1... c5 {[%clk 0:02:56.4]} 2. Nf3 {[%clk 0:03:01]} 2...
d6 {[%clk 0:02:56.8]} 3. d4 {[%clk 0:03:01.5]} 3... cxd4 {[%clk 0:02:57.7]} 4.
Nxd4 {[%clk 0:03:02.4]} 4... Nf6 {[%clk 0:02:58.3]} 5. Nc3 {[%clk 0:03:03]} 5...
Nc6 {[%clk 0:02:58.7]} 6. Bg5 {[%clk 0:03:03.1]} 6... e6 {[%clk 0:02:58.9]} 7.
Qd2 {[%clk 0:03:03.3]} 7... Bd7 {[%clk 0:02:59.2]} 8. Ndb5 {[%clk 0:02:57.9]}
8... Bc8 {[%clk 0:02:44.4]} 9. O-O-O {[%clk 0:02:56.1]} 9... Qa5 {[%clk
0:02:33.4]} 10. f4 {[%clk 0:02:23.2]} 10... Bd7 {[%clk 0:02:19.8]} 11. e5 {[%clk
0:02:13.9]} 11... h6 {[%clk 0:01:55.4]} 12. Bh4 {[%clk 0:02:05.1]} 12... g5
{[%clk 0:01:46.5]} 13. fxg5 {[%clk 0:02:03.5]} 13... hxg5 {[%clk 0:01:38.1]} 14.
Bxg5 {[%clk 0:02:03]} 14... Nh7 {[%clk 0:01:31.4]} 15. Nxd6+ {[%clk 0:01:52.8]}
15... Bxd6 {[%clk 0:01:30.9]} 16. Qxd6 {[%clk 0:01:53.7]} 16... Nxg5 {[%clk
0:01:30]} 17. Qxd7+ {[%clk 0:01:53.9]} 17... Kf8 {[%clk 0:01:30.6]} 18. Qxb7
{[%clk 0:01:54.8]} 18... Kg7 {[%clk 0:01:24.9]} 19. Qxc6 {[%clk 0:01:50.5]}
19... Rhc8 {[%clk 0:01:24.3]} 20. Qb5 {[%clk 0:01:48.3]} 20... Qc7 {[%clk
0:01:22.7]} 21. Rd7 {[%clk 0:01:43.6]} 1-0

[Event "*** Titled Tuesday Blitz"]
[Site "Chess.com"]
[Date "2020.04.07"]
[Round "2"]
[White "killer311"]
[Black "AlexOstrovskiy"]
[Result "0-1"]
[WhiteElo "2314"]
[BlackElo "2604"]
[TimeControl "180+1"]
[EndTime "13:16:14 PDT"]
[Termination "AlexOstrovskiy won by resignation"]

1. d4 {[%clk 0:03:00.9]} 1... d5 {[%clk 0:02:58.3]} 2. c4 {[%clk 0:03:00.8]}
2... dxc4 {[%clk 0:02:58.4]} 3. e3 {[%clk 0:03:00.6]} 3... e5 {[%clk 0:02:56.6]}
4. Bxc4 {[%clk 0:02:58.3]} 4... exd4 {[%clk 0:02:55.9]} 5. exd4 {[%clk
0:02:59.2]} 5... Bd6 {[%clk 0:02:56.5]} 6. Nf3 {[%clk 0:02:59]} 6... Nf6 {[%clk
0:02:56.9]} 7. O-O {[%clk 0:02:58.2]} 7... O-O {[%clk 0:02:57]} 8. Nc3 {[%clk
0:02:58.3]} 8... Nc6 {[%clk 0:02:54.7]} 9. h3 {[%clk 0:02:57.9]} 9... h6 {[%clk
0:02:52.3]} 10. Re1 {[%clk 0:02:55.4]} 10... Bf5 {[%clk 0:02:50]} 11. a3 {[%clk
0:02:51]} 11... a6 {[%clk 0:02:45.1]} 12. Be3 {[%clk 0:02:48.8]} 12... Qd7
{[%clk 0:02:42]} 13. d5 {[%clk 0:02:23.6]} 13... Ne5 {[%clk 0:02:34.8]} 14. Nxe5
{[%clk 0:02:22.8]} 14... Bxe5 {[%clk 0:02:35.7]} 15. Bd4 {[%clk 0:02:15.9]}
15... Bxd4 {[%clk 0:02:32.5]} 16. Qxd4 {[%clk 0:02:16]} 16... Rfe8 {[%clk
0:02:32.8]} 17. Qf4 {[%clk 0:02:09.2]} 17... Bg6 {[%clk 0:02:28.8]} 18. Rad1
{[%clk 0:02:01.6]} 18... Rad8 {[%clk 0:02:18.7]} 19. Bb3 {[%clk 0:01:56.6]}
19... Rxe1+ {[%clk 0:02:05]} 20. Rxe1 {[%clk 0:01:55]} 20... Ne8 {[%clk
0:02:05.9]} 21. Na4 {[%clk 0:01:43.5]} 21... Nd6 {[%clk 0:01:59.1]} 22. Nc5
{[%clk 0:01:41.4]} 22... Qb5 {[%clk 0:01:58.8]} 23. Qd4 {[%clk 0:01:27.4]} 23...
b6 {[%clk 0:01:52.1]} 24. Na4 {[%clk 0:01:17.4]} 24... Qxb3 {[%clk 0:01:51.9]}
25. Re3 {[%clk 0:01:10.1]} 25... Qc4 {[%clk 0:01:46.8]} 0-1

[Event "*** Titled Tuesday Blitz"]
[Site "Chess.com"]
[Date "2020.04.07"]
[Round "2"]
[White "Atakishiyev04"]
[Black "Teidi96"]
[Result "1-0"]
[WhiteElo "2649"]
[BlackElo "2223"]
[TimeControl "180+1"]
[EndTime "13:16:31 PDT"]
[Termination "Atakishiyev04 won by resignation"]

1. d4 {[%clk 0:03:00.9]} 1... Nf6 {[%clk 0:02:59.4]} 2. c4 {[%clk 0:03:00.8]}
2... g6 {[%clk 0:02:59.7]} 3. Nc3 {[%clk 0:03:00.4]} 3... d5 {[%clk 0:03:00.3]}
4. cxd5 {[%clk 0:03:00.1]} 4... Nxd5 {[%clk 0:03:01.2]} 5. e4 {[%clk 0:02:58]}
5... Nxc3 {[%clk 0:03:01.6]} 6. bxc3 {[%clk 0:02:58.9]} 6... Bg7 {[%clk
0:03:02.2]} 7. Bc4 {[%clk 0:02:49.2]} 7... c5 {[%clk 0:03:00.8]} 8. Ne2 {[%clk
0:02:48.6]} 8... O-O {[%clk 0:03:00.7]} 9. Be3 {[%clk 0:02:48]} 9... Nc6 {[%clk
0:03:00.4]} 10. h4 {[%clk 0:02:48.4]} 10... Qa5 {[%clk 0:02:53.2]} 11. Kf1
{[%clk 0:02:46.9]} 11... e6 {[%clk 0:02:15.7]} 12. h5 {[%clk 0:02:35.6]} 12...
b5 {[%clk 0:02:15.5]} 13. Bb3 {[%clk 0:02:33.6]} 13... cxd4 {[%clk 0:01:58.9]}
14. cxd4 {[%clk 0:02:31.6]} 14... Rd8 {[%clk 0:01:50.7]} 15. hxg6 {[%clk
0:02:30.9]} 15... hxg6 {[%clk 0:01:49.7]} 16. Qc1 {[%clk 0:02:30.7]} 16... Ne7
{[%clk 0:01:20.2]} 17. Bh6 {[%clk 0:02:25.4]} 17... Bh8 {[%clk 0:01:16.6]} 18.
Bg5 {[%clk 0:02:20.3]} 18... Rd7 {[%clk 0:00:49.6]} 19. Qf4 {[%clk 0:02:01.3]}
19... Qc7 {[%clk 0:00:43.4]} 20. Rxh8+ {[%clk 0:01:58.3]} 20... Kxh8 {[%clk
0:00:41.7]} 21. Bf6+ {[%clk 0:01:55.8]} 21... Kg8 {[%clk 0:00:38]} 22. Qh6
{[%clk 0:01:55.3]} 1-0

[Event "*** Titled Tuesday Blitz"]
[Site "Chess.com"]
[Date "2020.04.07"]
[Round "2"]
[White "anon219"]
[Black "Winehouse83"]
[Result "1-0"]
[WhiteElo "2807"]
[BlackElo "2533"]
[TimeControl "180+1"]
[EndTime "13:16:34 PDT"]
[Termination "anon219 won by checkmate"]

1. e4 {[%clk 0:03:00.9]} 1... c5 {[%clk 0:02:59.3]} 2. Nf3 {[%clk 0:03:00.9]}
2... e6 {[%clk 0:02:59.2]} 3. b3 {[%clk 0:03:00.1]} 3... Nc6 {[%clk 0:02:55.1]}
4. Bb2 {[%clk 0:02:59.3]} 4... d5 {[%clk 0:02:50.5]} 5. exd5 {[%clk 0:02:58.8]}
5... exd5 {[%clk 0:02:51.4]} 6. Bb5 {[%clk 0:02:59.3]} 6... Nf6 {[%clk
0:02:50.8]} 7. O-O {[%clk 0:02:59.8]} 7... Be7 {[%clk 0:02:49.6]} 8. d4 {[%clk
0:03:00]} 8... O-O {[%clk 0:02:38.8]} 9. Nbd2 {[%clk 0:02:57.5]} 9... Qb6 {[%clk
0:02:31.7]} 10. Bd3 {[%clk 0:02:49.7]} 10... cxd4 {[%clk 0:02:19.6]} 11. Re1
{[%clk 0:02:49.6]} 11... Bc5 {[%clk 0:02:15.1]} 12. Nf1 {[%clk 0:02:47.2]} 12...
Bg4 {[%clk 0:02:13.6]} 13. h3 {[%clk 0:02:47.2]} 13... Bh5 {[%clk 0:02:13]} 14.
Ng3 {[%clk 0:02:47.4]} 14... Bg6 {[%clk 0:02:12.2]} 15. a3 {[%clk 0:02:35.4]}
15... a5 {[%clk 0:02:11.1]} 16. Nf5 {[%clk 0:02:33.7]} 16... Rae8 {[%clk
0:02:06.9]} 17. N3h4 {[%clk 0:02:22.5]} 17... Ne4 {[%clk 0:02:03.8]} 18. Qf3
{[%clk 0:02:16.3]} 18... Ne5 {[%clk 0:01:59.4]} 19. Qf4 {[%clk 0:02:16.1]} 19...
Nxd3 {[%clk 0:01:38.5]} 20. cxd3 {[%clk 0:02:17]} 20... Nc3 {[%clk 0:01:34.6]}
21. Bxc3 {[%clk 0:02:14.8]} 21... dxc3 {[%clk 0:01:34.4]} 22. d4 {[%clk
0:02:15.5]} 22... Rxe1+ {[%clk 0:01:25.5]} 23. Rxe1 {[%clk 0:02:13.5]} 23...
Bxa3 {[%clk 0:01:25.7]} 24. Qe5 {[%clk 0:01:15.8]} 24... c2 {[%clk 0:01:13.7]}
25. Qxg7# {[%clk 0:01:15.5]} 1-0

[Event "*** Titled Tuesday Blitz"]
[Site "Chess.com"]
[Date "2020.04.07"]
[Round "2"]
[White "FeketeBarika"]
[Black "JacekDubiel"]
[Result "1-0"]
[WhiteElo "2263"]
[BlackElo "2446"]
[TimeControl "180+1"]
[EndTime "13:16:34 PDT"]
[Termination "FeketeBarika won by resignation"]

1. Nf3 {[%clk 0:03:00.9]} 1... Nf6 {[%clk 0:02:59.4]} 2. g3 {[%clk 0:03:01.8]}
2... e6 {[%clk 0:03:00]} 3. Bg2 {[%clk 0:02:58.8]} 3... b6 {[%clk 0:02:59.4]} 4.
O-O {[%clk 0:02:58]} 4... Bb7 {[%clk 0:02:59.9]} 5. d4 {[%clk 0:02:58.1]} 5...
Be7 {[%clk 0:02:55.8]} 6. c4 {[%clk 0:02:56.6]} 6... O-O {[%clk 0:02:55.5]} 7.
Nc3 {[%clk 0:02:56.9]} 7... d5 {[%clk 0:02:55.6]} 8. cxd5 {[%clk 0:02:52.2]}
8... exd5 {[%clk 0:02:54.6]} 9. Bg5 {[%clk 0:02:51.9]} 9... Re8 {[%clk
0:02:47.8]} 10. Rc1 {[%clk 0:02:50.9]} 10... h6 {[%clk 0:02:43]} 11. Bf4 {[%clk
0:02:45.9]} 11... c6 {[%clk 0:02:39.5]} 12. Ne5 {[%clk 0:02:45.3]} 12... Bd6
{[%clk 0:02:35.3]} 13. e4 {[%clk 0:02:37.8]} 13... c5 {[%clk 0:01:53]} 14. Nb5
{[%clk 0:02:25.9]} 14... Bf8 {[%clk 0:01:48.8]} 15. dxc5 {[%clk 0:02:18.8]}
15... bxc5 {[%clk 0:01:26.3]} 16. exd5 {[%clk 0:02:15.4]} 16... Bxd5 {[%clk
0:01:23.4]} 17. Bxd5 {[%clk 0:01:58.6]} 17... Nxd5 {[%clk 0:01:24.3]} 18. Qh5
{[%clk 0:01:51.8]} 18... g6 {[%clk 0:01:04.8]} 19. Nxg6 {[%clk 0:01:29.7]} 19...
fxg6 {[%clk 0:01:05.7]} 20. Qxg6+ {[%clk 0:01:29.8]} 20... Bg7 {[%clk
0:01:06.4]} 21. Bxh6 {[%clk 0:01:18.9]} 21... Qf6 {[%clk 0:00:59.1]} 22. Qxe8+
{[%clk 0:01:17.5]} 1-0

[Event "*** Titled Tuesday Blitz"]
[Site "Chess.com"]
[Date "2020.04.07"]
[Round "2"]
[White "HElissalt"]
[Black "SuperNM"]
[Result "0-1"]
[WhiteElo "2053"]
[BlackElo "2408"]
[TimeControl "180+1"]
[EndTime "13:16:36 PDT"]
[Termination "SuperNM won on time"]

1. d4 {[%clk 0:02:55.6]} 1... Nf6 {[%clk 0:02:59.5]} 2. c4 {[%clk 0:02:34.6]}
2... g6 {[%clk 0:02:58.8]} 3. Nc3 {[%clk 0:02:33.9]} 3... Bg7 {[%clk 0:02:59.2]}
4. e4 {[%clk 0:02:33.6]} 4... d6 {[%clk 0:02:59.7]} 5. Be2 {[%clk 0:02:33.9]}
5... O-O {[%clk 0:03:00.1]} 6. Be3 {[%clk 0:02:34.1]} 6... Nc6 {[%clk
0:02:58.6]} 7. d5 {[%clk 0:02:30.3]} 7... Ne5 {[%clk 0:02:57.7]} 8. f3 {[%clk
0:02:06.1]} 8... e6 {[%clk 0:02:56.5]} 9. f4 {[%clk 0:01:34.6]} 9... Ned7 {[%clk
0:02:55.5]} 10. dxe6 {[%clk 0:01:32.2]} 10... fxe6 {[%clk 0:02:56.4]} 11. Nf3
{[%clk 0:01:28.2]} 11... Ng4 {[%clk 0:02:46.2]} 12. Bg1 {[%clk 0:01:27.5]} 12...
Rxf4 {[%clk 0:02:43]} 13. Qd2 {[%clk 0:01:26.4]} 13... Bh6 {[%clk 0:02:38.8]}
14. Qc2 {[%clk 0:01:12.7]} 14... Rf8 {[%clk 0:02:36.1]} 15. h3 {[%clk
0:01:05.3]} 15... Ne3 {[%clk 0:02:33.7]} 16. Bxe3 {[%clk 0:01:04.2]} 16... Bxe3
{[%clk 0:02:34.6]} 17. Qd3 {[%clk 0:01:04]} 17... Bf4 {[%clk 0:02:29.7]} 18. O-O
{[%clk 0:01:03.1]} 18... Ne5 {[%clk 0:02:16.2]} 19. Nxe5 {[%clk 0:00:59.9]}
19... Bxe5 {[%clk 0:02:17.1]} 20. Rxf8+ {[%clk 0:00:59]} 20... Qxf8 {[%clk
0:02:18]} 21. Rf1 {[%clk 0:00:58.5]} 21... Qg7 {[%clk 0:02:18.1]} 22. Kh1 {[%clk
0:00:48.6]} 22... Bd7 {[%clk 0:02:17.6]} 23. Nb5 {[%clk 0:00:44.8]} 23... Bc6
{[%clk 0:02:16.2]} 0-1

[Event "*** Titled Tuesday Blitz"]
[Site "Chess.com"]
[Date "2020.04.07"]
[Round "2"]
[White "ckgchess"]
[Black "Leo_C"]
[Result "1-0"]
[WhiteElo "2615"]
[BlackElo "2320"]
[TimeControl "180+1"]
[EndTime "13:16:45 PDT"]
[Termination "ckgchess won by checkmate"]

1. e4 {[%clk 0:03:00.9]} 1... Nf6 {[%clk 0:02:59]} 2. e5 {[%clk 0:03:01]} 2...
Nd5 {[%clk 0:02:58.5]} 3. d4 {[%clk 0:03:01.9]} 3... d6 {[%clk 0:02:58.9]} 4. c4
{[%clk 0:03:02.3]} 4... Nb6 {[%clk 0:02:58.9]} 5. f4 {[%clk 0:03:03.2]} 5... g6
{[%clk 0:02:58.4]} 6. Nc3 {[%clk 0:02:59.4]} 6... Bg7 {[%clk 0:02:58.2]} 7. Be3
{[%clk 0:02:56]} 7... Be6 {[%clk 0:02:54.4]} 8. d5 {[%clk 0:02:53.1]} 8... Bc8
{[%clk 0:02:52.8]} 9. Nf3 {[%clk 0:02:50.7]} 9... Bg4 {[%clk 0:02:50.8]} 10. c5
{[%clk 0:02:42.5]} 10... N6d7 {[%clk 0:02:39.1]} 11. h3 {[%clk 0:02:36]} 11...
Bxf3 {[%clk 0:02:37.6]} 12. Qxf3 {[%clk 0:02:36.9]} 12... dxe5 {[%clk
0:02:36.2]} 13. O-O-O {[%clk 0:02:37.5]} 13... exf4 {[%clk 0:02:34.4]} 14. Bxf4
{[%clk 0:02:32.9]} 14... Nxc5 {[%clk 0:02:27.1]} 15. Bc4 {[%clk 0:02:31.2]}
15... O-O {[%clk 0:02:25.6]} 16. h4 {[%clk 0:02:31.4]} 16... b5 {[%clk
0:01:58.3]} 17. Nxb5 {[%clk 0:02:24.2]} 17... Nba6 {[%clk 0:01:54.9]} 18. h5
{[%clk 0:02:24.1]} 18... e5 {[%clk 0:01:38.8]} 19. hxg6 {[%clk 0:02:15.9]} 19...
hxg6 {[%clk 0:01:34.9]} 20. Qh3 {[%clk 0:02:08.3]} 20... Re8 {[%clk 0:01:32.9]}
21. Qh7+ {[%clk 0:02:06.6]} 21... Kf8 {[%clk 0:01:33.1]} 22. Bh6 {[%clk
0:02:05.9]} 22... Bxh6+ {[%clk 0:01:31]} 23. Qxh6+ {[%clk 0:02:06.8]} 23... Ke7
{[%clk 0:01:29.7]} 24. d6+ {[%clk 0:02:06.5]} 24... cxd6 {[%clk 0:01:26.8]} 25.
Qg5+ {[%clk 0:02:03.5]} 25... Kd7 {[%clk 0:01:19]} 26. Rxd6+ {[%clk 0:02:02.3]}
26... Kc8 {[%clk 0:01:19.4]} 27. Rxd8+ {[%clk 0:02:02.3]} 27... Rxd8 {[%clk
0:01:19.8]} 28. Rd1 {[%clk 0:01:59.8]} 28... Rxd1+ {[%clk 0:01:19.2]} 29. Kxd1
{[%clk 0:02:00.7]} 29... Kb7 {[%clk 0:01:18.7]} 30. Qe7+ {[%clk 0:02:00.1]}
30... Kb6 {[%clk 0:01:18.9]} 31. Qd6+ {[%clk 0:01:58.1]} 31... Ka5 {[%clk
0:01:18.4]} 32. a3 {[%clk 0:01:57.7]} 32... Ka4 {[%clk 0:01:17.1]} 33. b3+
{[%clk 0:01:52.1]} 33... Ka5 {[%clk 0:01:16.9]} 34. b4+ {[%clk 0:01:51.6]} 34...
Ka4 {[%clk 0:01:17.2]} 35. bxc5 {[%clk 0:01:51.9]} 35... Rc8 {[%clk 0:01:12]}
36. Qxa6# {[%clk 0:01:49.8]} 1-0

[Event "*** Titled Tuesday Blitz"]
[Site "Chess.com"]
[Date "2020.04.07"]
[Round "2"]
[White "riconaipe"]
[Black "W_Amadeus"]
[Result "1-0"]
[WhiteElo "2531"]
[BlackElo "2743"]
[TimeControl "180+1"]
[EndTime "13:16:49 PDT"]
[Termination "riconaipe won by resignation"]

1. d4 {[%clk 0:03:00.9]} 1... Nf6 {[%clk 0:02:58.6]} 2. c4 {[%clk 0:03:00.2]}
2... e6 {[%clk 0:02:58.3]} 3. Nc3 {[%clk 0:03:00.7]} 3... Bb4 {[%clk 0:02:57.5]}
4. e3 {[%clk 0:03:01]} 4... O-O {[%clk 0:02:56.8]} 5. Bd3 {[%clk 0:03:01.3]}
5... c5 {[%clk 0:02:55.7]} 6. a3 {[%clk 0:02:59.2]} 6... Bxc3+ {[%clk
0:02:55.1]} 7. bxc3 {[%clk 0:03:00.1]} 7... d6 {[%clk 0:02:55]} 8. Nf3 {[%clk
0:02:59.8]} 8... Nc6 {[%clk 0:02:52.2]} 9. O-O {[%clk 0:02:59.9]} 9... b6 {[%clk
0:02:52.5]} 10. Qe2 {[%clk 0:02:59.1]} 10... Na5 {[%clk 0:02:30.5]} 11. e4
{[%clk 0:02:58.9]} 11... Ne8 {[%clk 0:02:18.8]} 12. Bf4 {[%clk 0:02:54.5]} 12...
Ba6 {[%clk 0:02:11.8]} 13. Rad1 {[%clk 0:02:53.5]} 13... Rc8 {[%clk 0:02:01.5]}
14. e5 {[%clk 0:02:53.3]} 14... g6 {[%clk 0:01:24.2]} 15. d5 {[%clk 0:02:47]}
15... exd5 {[%clk 0:01:11.6]} 16. cxd5 {[%clk 0:02:46.2]} 16... Bxd3 {[%clk
0:01:11.5]} 17. Qxd3 {[%clk 0:02:40.7]} 17... dxe5 {[%clk 0:01:08.2]} 18. Nxe5
{[%clk 0:02:40.7]} 18... Nd6 {[%clk 0:01:07.8]} 19. Rfe1 {[%clk 0:02:32.1]}
19... Re8 {[%clk 0:00:59.5]} 20. Qh3 {[%clk 0:02:13.8]} 20... Qf6 {[%clk
0:00:37.6]} 21. Bg3 {[%clk 0:02:02.6]} 21... Qf5 {[%clk 0:00:22.6]} 22. Ng4
{[%clk 0:01:58.5]} 1-0

[Event "*** Titled Tuesday Blitz"]
[Site "Chess.com"]
[Date "2020.04.07"]
[Round "2"]
[White "Khamrakulov_Djurabek"]
[Black "iLuusions"]
[Result "1-0"]
[WhiteElo "2907"]
[BlackElo "2590"]
[TimeControl "180+1"]
[EndTime "13:16:52 PDT"]
[Termination "Khamrakulov_Djurabek won by resignation"]

1. e4 {[%clk 0:02:59.6]} 1... c5 {[%clk 0:02:59.7]} 2. c3 {[%clk 0:02:59.3]}
2... Nf6 {[%clk 0:02:56.7]} 3. e5 {[%clk 0:02:59.4]} 3... Nd5 {[%clk 0:02:57.1]}
4. d4 {[%clk 0:03:00.1]} 4... e6 {[%clk 0:02:57.6]} 5. Nf3 {[%clk 0:03:00.1]}
5... cxd4 {[%clk 0:02:58]} 6. cxd4 {[%clk 0:03:00.5]} 6... d6 {[%clk 0:02:58.5]}
7. Bc4 {[%clk 0:03:00.6]} 7... Nb6 {[%clk 0:02:58.4]} 8. Bd3 {[%clk 0:02:57.4]}
8... Nc6 {[%clk 0:02:55.1]} 9. O-O {[%clk 0:02:52.2]} 9... dxe5 {[%clk
0:02:54.9]} 10. dxe5 {[%clk 0:02:52.1]} 10... Nb4 {[%clk 0:02:54.8]} 11. Be4
{[%clk 0:02:51.7]} 11... N4d5 {[%clk 0:02:44.2]} 12. Qe2 {[%clk 0:02:44.2]}
12... Bd7 {[%clk 0:02:39.5]} 13. Rd1 {[%clk 0:02:40.6]} 13... Bc5 {[%clk
0:02:26.9]} 14. a3 {[%clk 0:02:31.8]} 14... a5 {[%clk 0:02:17.5]} 15. Nbd2
{[%clk 0:02:22.6]} 15... h6 {[%clk 0:02:00.1]} 16. Nb3 {[%clk 0:02:19.4]} 16...
Be7 {[%clk 0:01:54]} 17. Nfd4 {[%clk 0:02:12.7]} 17... O-O {[%clk 0:01:45.9]}
18. Qg4 {[%clk 0:02:00.1]} 18... Kh8 {[%clk 0:01:30.5]} 19. Qh5 {[%clk
0:01:49.6]} 19... Bg5 {[%clk 0:01:28.4]} 20. Nc5 {[%clk 0:01:49.2]} 20... Bxc1
{[%clk 0:01:09.3]} 21. Raxc1 {[%clk 0:01:48.8]} 21... Rb8 {[%clk 0:00:57]} 22.
Ncxe6 {[%clk 0:01:29.1]} 22... fxe6 {[%clk 0:00:51.6]} 23. Qg6 {[%clk
0:01:27.1]} 23... Rf5 {[%clk 0:00:49.3]} 24. Nxf5 {[%clk 0:01:24.9]} 24... exf5
{[%clk 0:00:45.8]} 25. Bxd5 {[%clk 0:01:24.8]} 25... Qe7 {[%clk 0:00:44.3]} 26.
Qxb6 {[%clk 0:01:23.7]} 1-0

[Event "*** Titled Tuesday Blitz"]
[Site "Chess.com"]
[Date "2020.04.07"]
[Round "2"]
[White "Orest_Vovk"]
[Black "Rogue_King"]
[Result "1-0"]
[WhiteElo "2472"]
[BlackElo "2233"]
[TimeControl "180+1"]
[EndTime "13:16:52 PDT"]
[Termination "Orest_Vovk won by resignation"]

1. g4 {[%clk 0:03:00.9]} 1... h5 {[%clk 0:02:52.2]} 2. g5 {[%clk 0:03:00.1]}
2... d5 {[%clk 0:02:52]} 3. Bg2 {[%clk 0:02:57.9]} 3... Bf5 {[%clk 0:02:48.5]}
4. c4 {[%clk 0:02:57.7]} 4... c6 {[%clk 0:02:47]} 5. Qb3 {[%clk 0:02:57.7]} 5...
Qb6 {[%clk 0:02:45.9]} 6. cxd5 {[%clk 0:02:57.4]} 6... Qxb3 {[%clk 0:02:45]} 7.
axb3 {[%clk 0:02:58.1]} 7... cxd5 {[%clk 0:02:43.4]} 8. Bxd5 {[%clk 0:02:57.6]}
8... Nc6 {[%clk 0:02:43.8]} 9. Bxc6+ {[%clk 0:02:41.8]} 9... bxc6 {[%clk
0:02:42.5]} 10. Nc3 {[%clk 0:02:42.4]} 10... Bc2 {[%clk 0:02:07.2]} 11. b4
{[%clk 0:02:39.6]} 11... e6 {[%clk 0:02:07]} 12. b5 {[%clk 0:02:39.8]} 12... Kd7
{[%clk 0:01:30.7]} 13. Nf3 {[%clk 0:02:19.1]} 13... c5 {[%clk 0:00:50.6]} 14.
Ne5+ {[%clk 0:02:14.5]} 14... Ke8 {[%clk 0:00:48.3]} 15. b6 {[%clk 0:02:13.8]}
15... Bd6 {[%clk 0:00:47.2]} 16. Rxa7 {[%clk 0:02:09.3]} 16... Rd8 {[%clk
0:00:17.2]} 17. Nxf7 {[%clk 0:02:06.6]} 17... Rh7 {[%clk 0:00:17.1]} 18. g6
{[%clk 0:01:53.4]} 18... Rh6 {[%clk 0:00:16.2]} 19. Nxd8 {[%clk 0:01:45.8]}
19... Kxd8 {[%clk 0:00:15.6]} 20. Rxg7 {[%clk 0:01:45.7]} 20... Bxg6 {[%clk
0:00:14.4]} 21. Rxg8+ {[%clk 0:01:45.1]} 1-0

[Event "*** Titled Tuesday Blitz"]
[Site "Chess.com"]
[Date "2020.04.07"]
[Round "2"]
[White "mrkvoz"]
[Black "ninjaturtle04"]
[Result "0-1"]
[WhiteElo "2816"]
[BlackElo "2583"]
[TimeControl "180+1"]
[EndTime "13:16:53 PDT"]
[Termination "ninjaturtle04 won by checkmate"]

1. e4 {[%clk 0:03:00.9]} 1... c5 {[%clk 0:02:57.1]} 2. Nc3 {[%clk 0:03:00.8]}
2... e6 {[%clk 0:02:56.4]} 3. Nge2 {[%clk 0:03:00.5]} 3... d6 {[%clk 0:02:49.6]}
4. g3 {[%clk 0:02:59.5]} 4... Nc6 {[%clk 0:02:47.8]} 5. Bg2 {[%clk 0:02:59.8]}
5... g6 {[%clk 0:02:46]} 6. d4 {[%clk 0:02:59.4]} 6... cxd4 {[%clk 0:02:40.1]}
7. Nxd4 {[%clk 0:03:00.3]} 7... Bg7 {[%clk 0:02:38.5]} 8. Ndb5 {[%clk
0:03:00.1]} 8... Bf8 {[%clk 0:02:30.8]} 9. Bf4 {[%clk 0:02:59.7]} 9... Ne5
{[%clk 0:02:27.9]} 10. Qd4 {[%clk 0:02:55.8]} 10... a6 {[%clk 0:02:26.5]} 11.
Bxe5 {[%clk 0:02:54.6]} 11... dxe5 {[%clk 0:02:23.2]} 12. Qxe5 {[%clk
0:02:54.8]} 12... f6 {[%clk 0:02:21.2]} 13. Nc7+ {[%clk 0:02:47.2]} 13... Kf7
{[%clk 0:02:21.5]} 14. Qa5 {[%clk 0:02:38.8]} 14... Bd6 {[%clk 0:02:19]} 15.
N3d5 {[%clk 0:02:32.2]} 15... Ne7 {[%clk 0:02:16.2]} 16. Qc3 {[%clk 0:02:23.1]}
16... Nxd5 {[%clk 0:02:13.6]} 17. Nxd5 {[%clk 0:02:22.1]} 17... exd5 {[%clk
0:02:13.2]} 18. O-O-O {[%clk 0:02:22.3]} 18... Kg7 {[%clk 0:02:09.9]} 19. Rxd5
{[%clk 0:02:21.2]} 19... Be6 {[%clk 0:02:09.5]} 20. Rd3 {[%clk 0:02:07.7]} 20...
Qb6 {[%clk 0:02:07.5]} 21. f4 {[%clk 0:02:01.2]} 21... Bb4 {[%clk 0:02:04.6]}
22. Qd4 {[%clk 0:02:00.9]} 22... Bc5 {[%clk 0:02:01]} 23. Qa4 {[%clk 0:01:57.7]}
23... Rad8 {[%clk 0:01:56.7]} 24. Rhd1 {[%clk 0:01:57]} 24... Rxd3 {[%clk
0:01:56]} 25. Rxd3 {[%clk 0:01:57.9]} 25... Rd8 {[%clk 0:01:50.5]} 26. Bf1
{[%clk 0:01:51.6]} 26... Be3+ {[%clk 0:01:48]} 27. Kb1 {[%clk 0:01:50.6]} 27...
Bd2 {[%clk 0:01:45.5]} 28. Rxd8 {[%clk 0:01:46.7]} 28... Qxd8 {[%clk 0:01:44.6]}
29. Bd3 {[%clk 0:01:45.8]} 29... Qb6 {[%clk 0:01:42.3]} 30. c4 {[%clk
0:01:10.1]} 30... Qg1+ {[%clk 0:01:42]} 31. Kc2 {[%clk 0:01:10.2]} 31... Qc1+
{[%clk 0:01:42.4]} 32. Kb3 {[%clk 0:01:10.6]} 32... b5 {[%clk 0:01:37.2]} 33.
Qxa6 {[%clk 0:00:59.7]} 33... Qd1+ {[%clk 0:01:35.8]} 34. Ka3 {[%clk 0:00:57.9]}
34... b4# {[%clk 0:01:32.7]} 0-1